bitfinex/quotes_SOLUSD_20240612
["timestamp","ask_amount","ask_price","bid_price","bid_amount"]
[1718161364623,24.9792,149.82,149.76,11.66949433]
[1718161364936,2.4701,149.79,149.76,11.66949433]
[1718161365146,2.47,149.8,149.76,11.66949433]
[1718161365752,4.9392,149.82,149.76,5.11119433]
[1718161365966,0.34,149.83,149.78,5.11119433]
[1718161366159,2.4696,149.82,149.78,5.11119433]
[1718161366834,2.4698,149.81,149.78,5.11119433]
[1718161367164,20.04,149.84,149.78,5.11119433]
[1718161367165,20.04,149.84,149.78,11.75259433]
[1718161367346,2.4695,149.83,149.78,11.75259433]
[1718161368343,20.04,149.84,149.78,11.75259433]
[1718161369059,2.4697,149.82,149.78,11.75259433]
[1718161369738,2.4698,149.81,149.78,6.6414]
[1718161369943,2.47,149.8,149.76,11.45439433]
[1718161371546,2.4704,149.77,149.76,11.45439433]
[1718161371850,4.9403,149.79,149.74,22.2683]
[1718161372052,2.4703,149.78,149.74,22.2683]
[1718161372792,2.4702,149.79,149.74,22.2683]
[1718161373080,2.4703,149.78,149.74,22.2683]
[1718161373447,2.4703,149.78,149.74,27.37949433]
[1718161373647,2.4704,149.77,149.74,27.37949433]
[1718161374160,32.39,149.8,149.74,27.37949433]
[1718161374161,24.9801,149.8,149.74,27.37949433]
[1718161374364,2.4703,149.78,149.74,27.37949433]
[1718161374880,7.49,149.76,149.74,27.37949433]
[1718161375451,7.45661325,149.76,149.74,22.2683]
[1718161378679,7.49,149.75,149.74,22.2683]
[1718161381175,7.49,149.75,149.72,5.11119433]
[1718161381363,7.49,149.73,149.72,11.66499433]
[1718161382374,7.49,149.73,149.7,5.11119433]
[1718161382557,100.0,149.76,149.7,5.11119433]
[1718161382558,7.49,149.71,149.7,5.11119433]
[1718161382984,9.9614,149.71,149.7,5.11119433]
[1718161383279,7.49,149.71,149.7,5.11119433]
[1718161383688,7.49,149.71,149.66,27.99969433]
[1718161383979,7.49,149.67,149.66,5.11119433]
[1718161384201,7.49,149.67,149.62,11.56069433]
[1718161384359,7.49,149.64,149.58,35.39179433]
[1718161384686,7.49,149.64,149.61,11.56069433]
[1718161384863,2.4723,149.66,149.61,11.56069433]
[1718161384864,2.4722,149.66,149.61,11.56069433]
[1718161385458,2.4722,149.66,149.61,6.4495]
[1718161385674,2.4722,149.66,149.62,5.11119433]
[1718161386187,137.9197,149.7,149.62,11.52979433]
[1718161386371,20.04,149.73,149.66,5.11119433]
[1718161386552,5.36933992,149.76,149.68,5.11119433]
[1718161386753,2.4707,149.76,149.72,5.11119433]
[1718161387385,15.2613,149.78,149.69,11.52979433]
[1718161387386,20.04,149.77,149.69,11.52979433]
[1718161387683,2.4715,149.71,149.67,5.11119433]
[1718161387900,2.4709,149.74,149.69,5.11119433]
[1718161388076,20.57234728,149.78,149.7,6.3649]
[1718161388282,2.4706,149.76,149.73,5.11119433]
[1718161388504,2.4705,149.77,149.73,5.11119433]
[1718161388790,2.4706,149.76,149.7,13.94759433]
[1718161388960,2.4706,149.76,149.7,11.47609433]
[1718161389160,7.4196,149.79,149.73,5.11119433]
[1718161389384,7.4196,149.79,149.73,23.65779433]
[1718161389586,7.4196,149.79,149.75,11.47609433]
[1718161389773,2.4703,149.78,149.75,6.3649]
[1718161389978,9.8897,149.79,149.75,11.47609433]
[1718161390177,2.4703,149.78,149.75,6.3649]
[1718161390367,2.4703,149.78,149.76,5.11119433]
[1718161390694,2.47,149.8,149.76,5.11119433]
[1718161390893,2.4702,149.79,149.76,5.11119433]
[1718161391595,2.4703,149.78,149.74,5.11119433]
[1718161391807,2.4709,149.75,149.71,6.6173]
[1718161392000,2.4711,149.73,149.69,16.4684]
[1718161392317,0.17,149.76,149.67,6.6173]
[1718161392318,2.4716,149.71,149.67,6.6173]
[1718161392680,2.4716,149.71,149.67,11.72849433]
[1718161393188,2.4714,149.71,149.67,6.6173]
[1718161393399,2.4715,149.71,149.67,6.6173]
[1718161393587,2.4715,149.71,149.67,11.72849433]
[1718161394008,2.4713,149.72,149.67,11.72849433]
[1718161394385,150.4513,149.76,149.67,11.72849433]
[1718161394386,100.0,149.79,149.67,11.77249433]
[1718161394588,2.4706,149.76,149.67,11.77249433]
[1718161394829,22.52,149.79,149.7,2.4714]
[1718161395007,24.9902,149.79,149.72,2.4712]
[1718161395319,22.52,149.79,149.67,24.13249433]
[1718161395479,2.4704,149.77,149.71,2.4714]
[1718161395681,2.4706,149.76,149.69,7.58289433]
[1718161396081,2.4706,149.76,149.69,7.58279433]
[1718161397614,2.4709,149.74,149.72,5.11119433]
[1718161398085,2.4709,149.74,149.7,5.11119433]
[1718161398498,2.4709,149.74,149.72,5.11119433]
[1718161399408,2.4712,149.72,149.7,5.11119433]
[1718161399606,2.4714,149.71,149.7,5.11119433]
[1718161399821,2.4714,149.71,149.67,6.6613]
[1718161400020,132.3942,149.75,149.67,6.6613]
[1718161400021,2.4713,149.72,149.67,11.77249433]
[1718161400318,2.4711,149.73,149.69,5.11119433]
[1718161401521,2.4711,149.73,149.71,5.11119433]
[1718161403538,2.4707,149.76,149.73,5.11119433]
[1718161403904,2.4707,149.75,149.73,5.11119433]
[1718161404498,2.4709,149.74,149.73,5.11119433]
[1718161405906,20.04,149.75,149.69,5.11119433]
[1718161406102,2.4712,149.72,149.69,5.11119433]
[1718161407401,20.04,149.8,149.7,6.2164]
[1718161407604,24.9802,149.79,149.73,5.11119433]
[1718161407921,2.4707,149.76,149.73,5.11119433]
[1718161409839,2.4705,149.77,149.73,5.11119433]
[1718161410137,2.4706,149.76,149.73,5.11119433]
[1718161412117,5.31658183,149.8,149.75,5.11119433]
[1718161412318,2.47,149.8,149.75,11.25129433]
[1718161412623,2.47,149.8,149.77,5.11119433]
[1718161413028,2.4701,149.79,149.77,5.11119433]
[1718161413822,2.47,149.8,149.77,5.11119433]
[1718161415160,2.4702,149.78,149.77,5.11119433]
[1718161415660,2.4702,149.78,149.75,11.11459433]
[1718161416242,2.4702,149.78,149.77,5.11119433]
[1718161416419,2.4701,149.79,149.77,5.11119433]
[1718161417324,2.4702,149.78,149.77,5.11119433]
[1718161418646,2.4702,149.78,149.75,5.11119433]
[1718161419336,2.4705,149.77,149.75,5.11119433]
[1718161419531,4.9403,149.79,149.75,5.11119433]
[1718161419741,2.4706,149.77,149.75,5.11119433]
[1718161422322,27.4606,149.78,149.73,5.11119433]
[1718161422636,2.4705,149.77,149.73,11.56069433]
[1718161423439,2.4706,149.76,149.73,11.56069433]
[1718161425457,2.4708,149.75,149.73,11.56069433]
[1718161425641,2.4708,149.75,149.73,5.11119433]
[1718161426555,2.4709,149.74,149.73,5.11119433]
[1718161427032,242.56,149.78,149.71,5.11119433]
[1718161427361,242.56,149.78,149.69,21.7249]
[1718161427362,2.4716,149.7,149.69,21.7249]
[1718161427531,2.4716,149.7,149.67,11.33419433]
[1718161427732,0.17,149.72,149.67,11.33419433]
[1718161427964,2.4715,149.71,149.67,11.33419433]
[1718161428593,24.9829,149.71,149.67,5.11119433]
[1718161428857,2.4719,149.68,149.67,5.11119433]
[1718161429268,22.86,149.72,149.67,5.11119433]
[1718161429554,2.4715,149.71,149.67,5.11119433]
[1718161430140,42.5827,149.75,149.68,6.3677]
[1718161430329,2.4712,149.73,149.7,5.11119433]
[1718161430532,2.4713,149.72,149.7,5.11119433]
[1718161430734,2.4714,149.71,149.68,11.47889433]
[1718161431256,2.4716,149.7,149.68,5.11119433]
[1718161431652,2.4717,149.69,149.68,5.11119433]
[1718161432037,2.4716,149.7,149.68,5.11119433]
[1718161434554,2.4715,149.71,149.68,5.11119433]
[1718161435047,32.735,149.74,149.68,5.11119433]
[1718161435048,2.4713,149.72,149.68,5.11119433]
[1718161435468,2.4714,149.71,149.68,5.11119433]
[1718161435658,2.4713,149.72,149.68,5.11119433]
[1718161437169,0.17,149.73,149.68,5.11119433]
[1718161437170,2.4714,149.71,149.68,5.11119433]
[1718161437957,2.4716,149.7,149.68,5.11119433]
[1718161438774,2.4717,149.69,149.65,21.52189433]
[1718161438976,2.4717,149.69,149.65,27.97039433]
[1718161438977,7.5,149.67,149.65,27.97039433]
[1718161440568,2.4716,149.7,149.68,5.11119433]
[1718161440873,7.5,149.69,149.68,5.11119433]
[1718161441082,2.4714,149.72,149.68,5.11119433]
[1718161441264,7.5,149.69,149.68,5.11119433]
[1718161443176,7.5,149.69,149.65,16.4107]
[1718161443383,7.5,149.66,149.64,5.11119433]
[1718161444100,2.4716,149.7,149.66,5.11119433]
[1718161444264,7.5,149.68,149.66,5.11119433]
[1718161444893,20.50736816,149.75,149.68,5.11119433]
[1718161445058,7.5,149.73,149.7,11.51259433]
[1718161445584,12.3524,149.77,149.7,11.51259433]
[1718161445585,7.5,149.72,149.7,11.51259433]
[1718161445894,7.5,149.72,149.71,5.11119433]
[1718161447085,2.4708,149.75,149.71,5.11119433]
[1718161448090,2.471,149.74,149.71,5.11119433]
[1718161448464,2.4711,149.73,149.71,5.11119433]
[1718161448879,2.471,149.74,149.71,5.11119433]
[1718161449584,2.4711,149.73,149.71,5.11119433]
[1718161449890,2.4712,149.72,149.71,5.11119433]
[1718161450581,2.4712,149.73,149.71,5.11119433]
[1718161454069,2.471,149.74,149.71,5.11119433]
[1718161454793,2.4711,149.73,149.71,5.11119433]
[1718161457399,2.4712,149.72,149.71,5.11119433]
[1718161457695,7.4128,149.74,149.69,5.11119433]
[1718161457998,2.4716,149.7,149.69,5.11119433]
[1718161460374,2.4715,149.71,149.69,5.11119433]
[1718161460775,2.4715,149.71,149.65,2.4724]
[1718161460776,2.4719,149.68,149.65,5.11119433]
[1718161460994,2.4718,149.69,149.65,5.11119433]
[1718161461387,2.4718,149.69,149.67,5.11119433]
[1718161462304,4.9429,149.71,149.65,5.11119433]
[1718161462305,2.472,149.68,149.65,5.11119433]
[1718161463808,2.4721,149.67,149.65,5.11119433]
[1718161464211,2.4719,149.68,149.65,5.11119433]
[1718161464398,2.4718,149.69,149.65,5.11119433]
[1718161465289,2.4718,149.69,149.67,5.11119433]
[1718161466534,2.6416,149.7,149.67,5.11119433]
[1718161466697,2.4716,149.7,149.67,5.11119433]
[1718161466882,7.5,149.68,149.67,5.11119433]
[1718161467099,7.5,149.69,149.67,5.11119433]
[1718161467409,7.5,149.7,149.67,5.11119433]
[1718161467813,7.5,149.7,149.69,5.11119433]
[1718161469590,9.9716,149.7,149.69,5.11119433]
[1718161470414,5.31140689,149.74,149.69,5.11119433]
[1718161470586,7.5,149.72,149.69,11.38389433]
[1718161471101,2.4711,149.73,149.69,11.38389433]
[1718161471411,7.5,149.72,149.71,5.11119433]
[1718161471921,9.9712,149.72,149.71,5.11119433]
[1718161474520,9.9712,149.72,149.69,11.38389433]
[1718161474521,2.4715,149.71,149.69,11.38389433]
[1718161474812,9.9715,149.71,149.69,11.38389433]
[1718161476807,7.5,149.71,149.69,11.38389433]
[1718161477206,7.5,149.71,149.69,5.11119433]
[1718161477722,9.9715,149.71,149.69,5.11119433]
[1718161477918,9.9716,149.7,149.69,5.11119433]
[1718161478813,9.9716,149.7,149.67,5.11119433]
[1718161479125,7.5,149.68,149.67,5.11119433]
[1718161479613,7.5,149.69,149.67,5.11119433]
[1718161481840,9.9717,149.69,149.67,5.11119433]
[1718161482120,7.5,149.68,149.67,5.11119433]
[1718161484208,9.9719,149.68,149.67,5.11119433]
[1718161484411,7.5,149.68,149.67,5.11119433]
[1718161484908,9.9719,149.68,149.67,5.11119433]
[1718161485331,7.5,149.68,149.67,5.11119433]
[1718161485528,170.699,149.73,149.67,5.11119433]
[1718161485529,2.4717,149.7,149.67,5.11119433]
[1718161485714,7.5,149.68,149.67,5.11119433]
[1718161490835,9.9719,149.68,149.67,5.11119433]
[1718161491220,7.5,149.68,149.67,5.11119433]
[1718161491745,9.9719,149.68,149.67,5.11119433]
[1718161492037,2.4722,149.66,149.65,5.11119433]
[1718161492250,9.9722,149.66,149.65,5.11119433]
[1718161492622,7.5,149.66,149.63,5.11119433]
[1718161493016,7.5,149.66,149.65,5.11119433]
[1718161493417,7.5,149.66,149.63,5.11119433]
[1718161493636,9.9722,149.66,149.63,5.11119433]
[1718161493842,7.5,149.66,149.63,5.11119433]
[1718161494645,9.9721,149.67,149.65,5.11119433]
[1718161495329,7.5,149.66,149.65,5.11119433]
[1718161498326,9.9722,149.66,149.65,5.11119433]
[1718161498746,9.9722,149.66,149.63,5.11119433]
[1718161498747,2.4724,149.65,149.63,5.11119433]
[1718161499047,7.5,149.65,149.63,5.11119433]
[1718161499224,9.9724,149.65,149.63,5.11119433]
[1718161499954,7.5,149.65,149.63,5.11119433]
[1718161500636,9.9724,149.65,149.63,5.11119433]
[1718161500826,9.9726,149.64,149.61,5.11119433]
[1718161501237,7.5,149.63,149.61,5.11119433]
[1718161502526,9.9728,149.63,149.61,5.11119433]
[1718161502727,7.5,149.63,149.61,5.11119433]
[1718161503034,7.5,149.63,149.59,28.90419433]
[1718161503232,2.4725,149.65,149.61,5.11119433]
[1718161503233,7.5,149.64,149.61,5.11119433]
[1718161503454,2.4723,149.66,149.61,5.11119433]
[1718161503629,7.5,149.65,149.63,5.11119433]
[1718161504135,2.4723,149.66,149.63,5.11119433]
[1718161504325,7.5,149.65,149.63,5.11119433]
[1718161504749,7.5,149.64,149.63,5.11119433]
[1718161505834,2.4724,149.65,149.63,5.11119433]
[1718161506034,7.5,149.64,149.63,5.11119433]
[1718161507030,9.9726,149.64,149.63,5.11119433]
[1718161507455,7.5,149.64,149.63,5.11119433]
[1718161507663,9.9726,149.64,149.63,5.11119433]
[1718161508047,2.4718,149.69,149.65,5.11119433]
[1718161508377,2.4718,149.69,149.67,5.11119433]
[1718161508540,9.9718,149.69,149.67,5.11119433]
[1718161509639,2.4718,149.69,149.67,5.11119433]
[1718161509839,9.9718,149.69,149.67,5.11119433]
[1718161510036,2.4714,149.71,149.67,5.11119433]
[1718161510258,30.0,149.73,149.68,2.4719]
[1718161510458,2.4712,149.72,149.68,6.2707]
[1718161510679,7.5,149.72,149.69,5.11119433]
[1718161510857,7.5,149.74,149.69,11.38189433]
[1718161511197,7.5,149.74,149.69,13.85359433]
[1718161511538,9.9708,149.75,149.69,21.35359433]
[1718161512046,158.44603562,149.79,149.69,21.35359433]
[1718161512275,2.4706,149.76,149.69,21.35359433]
[1718161512485,9.9706,149.76,149.69,21.35359433]
[1718161513962,2.4703,149.78,149.69,21.52359433]
[1718161514187,160.91613562,149.79,149.77,5.11119433]
[1718161514393,9.9701,149.79,149.77,5.11119433]
[1718161514575,9.9701,149.79,149.75,5.11119433]
[1718161514779,9.9704,149.78,149.77,5.11119433]
[1718161515081,9.9702,149.78,149.77,5.11119433]
[1718161515789,9.9702,149.78,149.75,5.11119433]
[1718161515961,9.9705,149.77,149.75,5.11119433]
[1718161516167,9.9706,149.76,149.75,5.11119433]
[1718161517173,7.5,149.76,149.75,5.11119433]
[1718161518500,7.5,149.76,149.69,21.8505]
[1718161518501,4.9415,149.75,149.71,5.11119433]
[1718161518794,7.5,149.72,149.71,5.11119433]
[1718161519162,7.5,149.73,149.71,5.11119433]
[1718161519560,7.5,149.72,149.71,5.11119433]
[1718161521268,9.9712,149.72,149.71,5.11119433]
[1718161523597,7.5,149.72,149.71,5.11119433]
[1718161524832,9.9712,149.72,149.71,5.11119433]
[1718161525493,7.67,149.72,149.69,5.11119433]
[1718161525697,7.5,149.7,149.67,5.11119433]
[1718161525930,7.5,149.7,149.69,5.11119433]
[1718161526297,7.5,149.71,149.69,5.11119433]
[1718161526497,7.5,149.7,149.69,5.11119433]
[1718161526910,2.4711,149.74,149.71,5.11119433]
[1718161527215,7.5,149.72,149.71,5.11119433]
[1718161527594,9.9712,149.72,149.71,5.11119433]
[1718161529713,7.5,149.72,149.71,5.11119433]
[1718161531322,2.4707,149.76,149.71,5.11119433]
[1718161531518,128.2307,149.79,149.71,5.11119433]
[1718161531519,2.4705,149.77,149.71,5.11119433]
[1718161531702,7.5,149.74,149.73,5.11119433]
[1718161531904,7.5,149.75,149.73,5.11119433]
[1718161532122,2.4705,149.77,149.73,5.11119433]
[1718161532320,7.5,149.76,149.73,5.11119433]
[1718161532623,9.9706,149.76,149.73,5.11119433]
[1718161532921,2.4707,149.75,149.73,5.11119433]
[1718161533131,7.5,149.76,149.73,5.11119433]
[1718161533523,9.9706,149.76,149.73,5.11119433]
[1718161533748,9.9706,149.76,149.75,5.11119433]
[1718161535441,9.9706,149.76,149.69,9.9716]
[1718161535442,2.4709,149.74,149.73,5.11119433]
[1718161535641,9.9709,149.74,149.73,5.11119433]
[1718161539242,7.5,149.74,149.73,5.11119433]
[1718161541329,7.5,149.74,149.71,5.11119433]
[1718161541533,7.5,149.72,149.71,5.11119433]
[1718161543644,7.5,149.73,149.71,5.11119433]
[1718161544536,9.9711,149.73,149.71,5.11119433]
[1718161545732,2.4712,149.72,149.71,5.11119433]
[1718161545919,0.34,149.72,149.68,5.11119433]
[1718161546124,9.9715,149.71,149.7,5.11119433]
[1718161549655,7.5,149.71,149.7,5.11119433]
[1718161549838,7.5,149.72,149.7,5.11119433]
[1718161551058,7.5,149.71,149.68,5.11119433]
[1718161551241,9.9715,149.71,149.66,5.11119433]
[1718161551571,7.5,149.7,149.66,5.11119433]
[1718161551862,7.5,149.7,149.68,5.11119433]
[1718161554042,7.5,149.7,149.66,7.58339433]
[1718161554342,7.5,149.69,149.66,5.11119433]
[1718161556146,7.5,149.69,149.65,2.4724]
[1718161556147,7.5,149.7,149.68,5.11119433]
[1718161556737,7.5,149.7,149.66,5.11119433]
[1718161557249,9.9716,149.7,149.66,5.11119433]
[1718161557463,9.972,149.68,149.66,5.11119433]
[1718161558342,7.5,149.68,149.66,5.11119433]
[1718161558730,9.972,149.68,149.66,5.11119433]
[1718161558927,7.5,149.67,149.66,5.11119433]
[1718161561160,7.5,149.67,149.66,4.61119433]
[1718161562569,9.9721,149.67,149.66,4.61119433]
[1718161563253,10.1421,149.67,149.66,4.61119433]
[1718161563440,10.6521,149.67,149.66,4.61119433]
[1718161565162,0.34,149.67,149.66,4.61119433]
[1718161565358,7.5,149.69,149.66,4.61119433]
[1718161565562,9.9718,149.69,149.66,4.61119433]
[1718161566836,15.3406,149.73,149.66,4.61119433]
[1718161567168,7.5,149.71,149.69,4.61119433]
[1718161567748,2.4713,149.72,149.69,4.61119433]
[1718161567970,7.5,149.71,149.69,4.61119433]
[1718161568352,2.4713,149.72,149.69,4.61119433]
[1718161568353,9.9713,149.72,149.69,4.61119433]
[1718161568574,2.4716,149.7,149.69,4.61119433]
[1718161568876,2.4716,149.7,149.67,4.61119433]
[1718161569377,9.9716,149.7,149.67,4.61119433]
[1718161570260,7.5,149.7,149.67,4.61119433]
[1718161570668,9.9717,149.69,149.67,4.61119433]
[1718161570879,9.9719,149.68,149.67,4.61119433]
[1718161571947,7.5,149.68,149.67,4.61119433]
[1718161574855,7.67,149.68,149.67,4.61119433]
[1718161575061,0.17,149.67,149.65,4.61119433]
[1718161575268,10.1422,149.66,149.65,4.61119433]
[1718161575465,10.4822,149.66,149.65,4.61119433]
[1718161576860,2.9822,149.66,149.65,4.61119433]
[1718161577064,10.4822,149.66,149.65,4.61119433]
[1718161578954,2.4727,149.63,149.59,4.61119433]
[1718161579160,7.5,149.63,149.59,10.71539433]
[1718161579678,7.5,149.63,149.59,13.18879433]
[1718161580185,7.5,149.63,149.59,10.71539433]
[1718161580862,7.5,149.63,149.61,4.61119433]
[1718161582693,0.51,149.66,149.61,11.21429433]
[1718161582902,7.5,149.66,149.62,6.6031]
[1718161583067,9.9721,149.67,149.63,4.61119433]
[1718161583701,7.5,149.66,149.63,4.61119433]
[1718161584083,9.9723,149.66,149.63,4.61119433]
[1718161585601,7.5,149.66,149.63,4.61119433]
[1718161586501,9.9722,149.66,149.63,4.61119433]
[1718161586997,5.1148,149.65,149.6,4.61119433]
[1718161587205,2.4727,149.63,149.6,4.61119433]
[1718161587501,7.5,149.62,149.6,4.61119433]
[1718161588500,9.9727,149.63,149.6,4.61119433]
[1718161588805,7.5,149.63,149.62,4.61119433]
[1718161589003,2.9825,149.65,149.62,4.61119433]
[1718161589305,7.5,149.64,149.62,4.61119433]
[1718161589490,9.9726,149.64,149.62,4.61119433]
[1718161591594,7.5,149.63,149.62,4.61119433]
[1718161593193,9.9727,149.63,149.62,4.61119433]
[1718161594090,7.5,149.63,149.62,4.61119433]
[1718161594503,10.3127,149.63,149.62,4.61119433]
[1718161594692,2.4729,149.62,149.6,4.61119433]
[1718161594887,9.9729,149.62,149.6,4.61119433]
[1718161595319,7.5,149.62,149.6,4.61119433]
[1718161595617,9.9729,149.62,149.58,4.61119433]
[1718161595821,3.1528,149.63,149.6,4.61119433]
[1718161596491,0.34,149.62,149.58,4.61119433]
[1718161596701,9.9735,149.59,149.56,4.61119433]
[1718161597092,7.5,149.59,149.56,4.61119433]
[1718161597622,9.9734,149.59,149.58,4.61119433]
[1718161597827,7.67,149.59,149.56,4.61119433]
[1718161598125,7.5,149.59,149.56,4.61119433]
[1718161599290,100.0,149.65,149.58,4.61119433]
[1718161599491,211.5786,149.65,149.58,4.61119433]
[1718161599690,2.473,149.62,149.6,4.61119433]
[1718161599907,10.143,149.61,149.6,4.61119433]
[1718161600324,0.17,149.61,149.6,4.61119433]
[1718161600496,2.473,149.62,149.6,4.61119433]
[1718161600703,7.5,149.61,149.6,4.61119433]
[1718161601611,10.313,149.61,149.6,4.61119433]
[1718161601812,10.483,149.61,149.6,4.61119433]
[1718161602324,2.6432,149.6,149.58,4.61119433]
[1718161602510,7.5,149.59,149.58,4.61119433]
[1718161603322,7.5,149.59,149.56,4.61119433]
[1718161603625,7.5,149.58,149.56,4.61119433]
[1718161603921,0.17,149.6,149.56,4.61119433]
[1718161604103,7.67,149.6,149.56,4.61119433]
[1718161604507,7.67,149.6,149.58,4.61119433]
[1718161605235,2.6434,149.59,149.58,4.61119433]
[1718161605425,0.68,149.59,149.56,4.61119433]
[1718161605608,8.01,149.59,149.56,4.61119433]
[1718161606426,8.01,149.59,149.58,4.61119433]
[1718161606724,8.18,149.59,149.58,4.61119433]
[1718161608024,10.6534,149.59,149.58,4.61119433]
[1718161610711,10.6534,149.59,149.56,4.61119433]
[1718161610919,9.9737,149.57,149.54,4.61119433]
[1718161611121,7.5,149.56,149.54,4.61119433]
[1718161611448,2.6437,149.57,149.56,4.61119433]
[1718161611608,8.18,149.57,149.54,4.61119433]
[1718161611809,9.974,149.55,149.52,4.61119433]
[1718161612421,7.5,149.55,149.52,4.61119433]
[1718161612819,7.5,149.55,149.51,15.801]
[1718161612820,7.5,149.55,149.54,4.61119433]
[1718161613506,9.974,149.55,149.54,4.61119433]
[1718161613702,2.4744,149.53,149.52,4.61119433]
[1718161613937,9.9744,149.53,149.5,4.61119433]
[1718161614248,7.5,149.53,149.52,4.61119433]
[1718161614439,7.5,149.54,149.52,4.61119433]
[1718161614736,9.9742,149.54,149.52,4.61119433]
[1718161616217,7.5,149.53,149.52,4.61119433]
[1718161617808,9.9744,149.53,149.52,4.61119433]
[1718161618013,9.9744,149.53,149.5,4.61119433]
[1718161618611,7.5,149.53,149.5,4.61119433]
[1718161618818,7.5,149.53,149.52,4.61119433]
[1718161622728,7.5,149.53,149.49,4.61119433]
[1718161623046,7.5,149.53,149.51,4.61119433]
[1718161624241,7.5,149.53,149.49,4.61119433]
[1718161624458,9.9745,149.52,149.49,4.61119433]
[1718161624614,9.9745,149.52,149.51,4.61119433]
[1718161624813,7.5,149.52,149.51,4.61119433]
[1718161625034,9.9745,149.52,149.49,4.61119433]
[1718161625237,7.5,149.52,149.47,4.61119433]
[1718161625545,7.5,149.52,149.48,2.4752]
[1718161625837,7.5,149.52,149.49,4.61119433]
[1718161626042,7.5,149.52,149.48,2.4752]
[1718161626043,2.474,149.55,149.51,4.61119433]
[1718161626250,7.5,149.54,149.53,4.61119433]
[1718161627144,9.9742,149.54,149.51,4.61119433]
[1718161627615,7.5,149.54,149.51,4.61119433]
[1718161628841,9.9742,149.54,149.53,4.61119433]
[1718161629969,2.4744,149.53,149.51,4.61119433]
[1718161630242,9.9744,149.53,149.51,4.61119433]
[1718161630922,7.5,149.53,149.51,4.61119433]
[1718161634443,7.5,149.52,149.51,4.61119433]
[1718161635650,7.67,149.52,149.49,4.61119433]
[1718161635845,7.5,149.5,149.49,4.61119433]
[1718161636051,2.6447,149.52,149.49,4.61119433]
[1718161636359,7.5,149.51,149.49,4.61119433]
[1718161637737,2.474,149.56,149.52,4.61119433]
[1718161637950,7.5,149.54,149.52,4.61119433]
[1718161638251,9.9742,149.54,149.52,4.61119433]
[1718161638452,7.5,149.54,149.52,4.61119433]
[1718161638650,9.9742,149.54,149.52,4.61119433]
[1718161638885,7.5,149.53,149.52,4.61119433]
[1718161640362,9.9744,149.53,149.52,4.61119433]
[1718161640525,2.4746,149.52,149.5,4.61119433]
[1718161640827,9.9746,149.52,149.5,4.61119433]
[1718161641029,7.5,149.52,149.5,4.61119433]
[1718161641229,10.3145,149.53,149.5,4.61119433]
[1718161642037,9.9746,149.52,149.5,4.61119433]
[1718161642975,7.5,149.52,149.5,4.61119433]
[1718161646067,7.5,149.51,149.5,4.61119433]
[1718161647356,7.5,149.52,149.5,4.61119433]
[1718161647974,9.9745,149.52,149.5,4.61119433]
[1718161648696,9.9747,149.51,149.5,4.61119433]
[1718161649192,7.5,149.51,149.5,4.61119433]
[1718161652366,9.9746,149.52,149.5,4.61119433]
[1718161653474,2.4747,149.51,149.5,4.61119433]
[1718161653674,9.9747,149.51,149.5,4.61119433]
[1718161655077,2.4749,149.5,149.48,4.61119433]
[1718161655277,9.9749,149.5,149.48,4.61119433]
[1718161655965,9.975,149.49,149.48,4.61119433]
[1718161656164,9.975,149.49,149.43,4.61119433]
[1718161656165,2.4753,149.48,149.43,4.61119433]
[1718161656383,7.5,149.46,149.43,4.61119433]
[1718161656582,9.9758,149.45,149.41,27.48139433]
[1718161656902,2.4756,149.46,149.41,27.48139433]
[1718161657191,7.5,149.45,149.43,4.61119433]
[1718161658281,9.9758,149.45,149.43,4.61119433]
[1718161658684,9.9759,149.44,149.43,4.61119433]
[1718161658899,7.5,149.44,149.43,4.61119433]
[1718161659103,9.9759,149.44,149.43,4.61119433]
[1718161659290,9.9759,149.44,149.41,4.61119433]
[1718161659496,7.5,149.44,149.41,4.61119433]
[1718161662498,9.9759,149.44,149.41,4.61119433]